Cogmind - Beta 16.1 @@@ ROGUE MODE // 2026.03.11 @ 15:43:09 Player: Ben Result: Destroyed by QE-HJM(R) with Subdweller Beam Cannon Performance ------------- Evolutions (0) 0 Regions Visited (2) 400 Robots Destroyed (8) 40 Value Destroyed (149) 149 Prototype IDs (0) 0 Alien Tech Used (0) 0 Bonus (0) 0 TOTAL SCORE: 589 Bonus ------- None Cogmind --------- Core Integrity 0/250 Matter 229/300 Energy 100/100 System Corruption 0% Temperature Cool (9) Movement Core (100) Ox1 Location -10/Subcaves Parts ------- > --- POWER (1) -------- (None) > --- PROPULSION (2) --- (None) > --- UTILITY (2) ------ Small Storage Unit > --- WEAPON (2) ------- (None) > --- INVENTORY (8) ---- Signal Interpreter Scrap Shield Peak State ------------ > --- POWER ------------ Light Ion Engine > --- PROPULSION ------- Light Treads Light Treads > --- UTILITY ---------- Small Storage Unit Seismic Detector > --- WEAPON ----------- Light Assault Rifle Light Assault Rifle > --- INVENTORY -------- Wheel Compact Wheel Light Assault Rifle [Rating: 7] Favorites ----------- Power Light Ion Engine Engine Light Ion Engine Propulsion Light Treads Treads Light Treads Wheel Compact Wheel Utility Small Storage Unit Device Seismic Detector Storage Small Storage Unit Weapon Light Assault Rifle Ballistic Gun Light Assault Rifle Build | -11 -10 -10 ------- Run | Yrd Mat Sub Slots Evolved . | . . . Power . | . . . Propulsion . | . . . Utility . | . . . Weapon . | . . . Parts Attached 11 | 7 4 . Power 2 | 1 1 . Engine 2 | 1 1 . Core . | . . . Reactor . | . . . Propulsion 4 | 2 2 . Treads 2 | 2 . . Leg . | . . . Wheel 2 | . 2 . Hover . | . . . Flight . | . . . Utility 2 | 2 . . Device 1 | 1 . . Storage 1 | 1 . . Processor . | . . . Hackware . | . . . Protection . | . . . Artifact . | . . . Weapon 3 | 2 1 . Energy Gun . | . . . Energy Cannon . | . . . Ballistic Gun 3 | 2 1 . Ballistic Cannon . | . . . Launcher . | . . . Special Weapon . | . . . Impact Weapon . | . . . Slashing Weapon . | . . . Piercing Weapon . | . . . Special Melee Weapon . | . . . Unidentified Prototypes . | . . . Parts Lost 9 | . 8 1 Power 1 | . 1 . Propulsion 4 | . 4 . Utility 1 | . 1 . Weapon 3 | . 2 1 Highest Loss Streak 8 | . 8 1 To Critical Strikes . | . . . Average Backups 2 | 1 3 1 Power . | . . . Propulsion 1 | 1 1 . Utility 1 | . . 1 Weapon . | . . . Tool/Special . | . . . Unused Backups 2 | . . 2 Power . | . . . Propulsion . | . . . Utility 2 | . . 2 Weapon . | . . . Tool/Special . | . . . Average Slot Usage (%) 65 | . 91 19 Engine 7 | . 12 . Treads 15 | . 24 . Wheel 1 | . 1 . Device 7 | . 12 . Storage 14 | . 14 14 Ballistic Gun 17 | . 24 5 Peak Build Rating 7 | 7 7 2 Average Rating 4 | 5 6 1 On Entrance 3 | . 7 2 Avg Prop Armor Cover (%) . | . . . Naked Turns . | . . . Heaviest Build 13 | 11 13 6 Greatest Support 40 | 40 40 3 Greatest Overweight (x) 1 | . 1 1 Average Overweight (x) . | . . 1 Largest Inventory Capacity 8 | 8 8 8 Average Capacity 7 | 7 8 8 Most Carried 5 | 4 5 3 Average Carried 3 | 2 3 2 Final Capacity 8 | 8 8 8 Final Carried 3 | 3 1 3 Class Distribution -------------------- 100% | Mutant Dominant Class ---------------- Mutant | -10/Materials Mutant | -10/Subcaves Resources | -11 -10 -10 ----------- Run | Yrd Mat Sub Matter Collected 243 | 87 102 54 Remotely . | . . . Salvage Created 163 | 14 149 . Parts 17 | 3 14 . Haulers Intercepted . | . . . Recyclers Shooed . | . . . Parts Field Recycled . | . . . Retrieved Matter . | . . . Parts Self-Destructed 3 | . . 3 Prevented . | . . . Parts Restored . | . . . Kills | -11 -10 -10 ------- Run | Yrd Mat Sub Combat Hostiles Destroyed 7 | . 7 . Guns 7 | . 7 . Classes Destroyed 3 | 1 2 . Tunneler 1 | 1 . . Swarmer 4 | . 4 . Grunt 3 | . 3 . Best Kill Streak 4 | 1 4 . Combat Bots Only 4 | . 4 . Max Kills in Single Turn 1 | 1 1 . Gunslinging . | . . . Exploded . | . . . Melee . | . . . Uniques/NPCs Destroyed . | . . . Combat | -11 -10 -10 -------- Run | Yrd Mat Sub Hostile Shots Fired 153 | . 147 6 Missed 44 | . 43 1 Hits 109 | . 104 5 Projectile 109 | . 104 5 Critical Strikes 1 | . 1 . Damage Taken 1077 | . 968 109 Core 276 | . 183 93 Absorbed by Shields . | . . . Core Remaining (%) 100 | 100 . . Volleys Fired 38 | 2 36 . Largest 2 | 2 2 . Hottest 40 | 40 40 . Shots Fired 59 | 4 55 . Gun 59 | 4 55 . Cannon . | . . . Launcher . | . . . Special . | . . . Kinetic 59 | 4 55 . Thermal . | . . . Explosive . | . . . Electromagnetic . | . . . Robot Hit Streak 9 | 1 9 . Robot Miss Streak 2 | 1 2 . Penetration Max . | . . . Secondary Targets 1 | . 1 . Max Gunslinging Chain 1 | . 1 . Shots Hit Robots 40 | 2 38 . Core Hits 14 | 2 12 . Critical Kills 1 | . 1 . Critical Parts Destroyed . | . . . Critical Strikes 1 | . 1 . Destroy 1 | . 1 . Melee Attacks . | . . . Impact . | . . . Slashing . | . . . Piercing . | . . . Sneak Attacks . | . . . Combat Hostiles . | . . . Follow-up Attacks . | . . . Damage Inflicted 353 | 13 340 . Guns 350 | 13 337 . Cannons . | . . . Explosions . | . . . Melee . | . . . Ramming 3 | . 3 . Kinetic 350 | 13 337 . Thermal . | . . . Explosive . | . . . Electromagnetic . | . . . Impact . | . . . Slashing . | . . . Piercing . | . . . Highest Corruption . | . . . Average Corruption . | . . . Corruption Purged . | . . . Corruption Blocked . | . . . Overload Shots . | . . . Overflow Damage . | . . . Projectiles . | . . . Explosions . | . . . Melee . | . . . Knockbacks . | . . . Impact . | . . . Kinetic . | . . . Secondary . | . . . Self-Inflicted Damage . | . . . Shots . | . . . Rammed 2 | 1 1 . Targets Rammed 2 | 1 1 . Kicked . | . . . Crushed . | . . . Highest Temperature 24 | . 24 . Average Temperature 9 | . 9 . Received Heat Transfer 285 | . 252 33 Siege Activations . | . . . Martial Activations . | . . . Shielding Activations . | . . . Robots Disrupted . | . . . Combat Hostiles . | . . . Robots Corrupted . | . . . Combat Hostiles . | . . . Parts Fried . | . . . Impact Corruptions . | . . . Robots Melted . | . . . Combat Hostiles . | . . . Parts Melted . | . . . Heat Transferred . | . . . Parts Sabotaged . | . . . Parts Stolen . | . . . Parts Stripped . | . . . Power Chain Reactions . | . . . Alert | -11 -10 -10 ------- Run | Yrd Mat Sub Maximum Alert Level . | . . . Low Security (%) 100 | 100 100 . Level 1 . | . . . Level 2 . | . . . Level 3 . | . . . Level 4 . | . . . Level 5 . | . . . High Security . | . . . Max Security . | . . . Peak Influence 95 | 5 95 . Initial . | . . . Average 11 | . 14 . Influence Increases 180 | 5 175 . Destroy 0b10 Robot/C 140 | . 140 . Destroy 0b10 Robot/NC 5 | 5 . . Destroy Leader 20 | . 20 . Lose Combat Pursuer 15 | . 15 . Influence Decreases 180 | 5 175 . Time Decay 103 | 5 98 . Lost Part 77 | . 77 . Squads Dispatched 3 | . 3 . Investigation 2 | . 2 . Extermination . | . . . Reinforcement 1 | . 1 . Assault . | . . . Garrison . | . . . Intercept . | . . . Searches Triggered . | . . . Construction Impeded . | . . . Haulers Reinforced . | . . . Active Scanning Responses . | . . . Cargo Convoy Interrupts . | . . . Stealth | -11 -10 -10 --------- Run | Yrd Mat Sub Distress Signals 2 | . 2 . Communications Jammed . | . . . Distress Signals . | . . . Times Spotted 26 | . 17 9 Peak Tracking Total 8 | . 8 6 Tactical Retreats 1 | . 1 . Traps | -11 -10 -10 ------- Run | Yrd Mat Sub Traps Triggered 2 | . 2 . Indirectly . | . . . Trap Hack Attempts . | . . . Triggered . | . . . Disarmed . | . . . Reprogrammed . | . . . Reused . | . . . Traps Extracted . | . . . Installed . | . . . Triggered . | . . . Machines | -11 -10 -10 ---------- Run | Yrd Mat Sub Machines Disabled . | . . . Max in Single Turn . | . . . Machines Repaired . | . . . Machines Dismantled . | . . . Machines Sabotaged . | . . . Overloaded Fab Kills . | . . . Hacking | -11 -10 -10 --------- Run | Yrd Mat Sub Machines Accessed 1 | . 1 . Terminals 1 | . 1 . Fabricators . | . . . Repair Stations . | . . . Recycling Units . | . . . Scanalyzers . | . . . Garrison Access . | . . . Total Hacks 2 | . 2 . Successful 2 | . 2 . Failed . | . . . Catastrophic . | . . . Database Lockouts . | . . . Manual . | . . . Terminals 2 | . 2 . Fabricators . | . . . Repair Stations . | . . . Recycling Units . | . . . Scanalyzers . | . . . Garrison Access . | . . . Terminal Hacks 2 | . 2 . Record 2 | . 2 . Fabricator Hacks . | . . . Repair Station Hacks . | . . . Recycling Unit Hacks . | . . . Scanalyzer . | . . . Garrison Access Hacks . | . . . Unauthorized Hacks . | . . . Terminals . | . . . Fabricators . | . . . Repair Stations . | . . . Recycling Units . | . . . Scanalyzers . | . . . Garrison Access . | . . . Data Cores Recovered . | . . . Used . | . . . Hacking Detections 1 | . 1 . Full Trace Events . | . . . Feedback Events . | . . . Feedback Blocked . | . . . Robot Schematics Acquired . | . . . Robots Built . | . . . Authchips . | . . . Time . | . . . Total Robot Build Rating . | . . . Part Schematics Acquired . | . . . Parts Built . | . . . Authchips . | . . . Time . | . . . Total Part Build Rating . | . . . Part Studies Acquired . | . . . Parts Repaired . | . . . Time . | . . . Parts Recycled . | . . . Recycled Matter . | . . . Retrieved Matter . | . . . Retrieved Components . | . . . Parts Scanalyzed . | . . . Part Schematics Acquired . | . . . Parts Damaged . | . . . Bothacking | -11 -10 -10 ------------ Run | Yrd Mat Sub Used RIF Installer . | . . . Robots Hacked . | . . . Non-combat . | . . . Combat . | . . . Robot Hacks Applied . | . . . Relay Couplers Released . | . . . Fabnet Peak Effective % . | . . . Robots Rewired . | . . . Allies Hacked . | . . . Hacks Repelled . | . . . Allies | -11 -10 -10 -------- Run | Yrd Mat Sub Total Allies . | . . . Largest Group . | . . . Highest-Rated Group . | . . . Highest-Rated Ally . | . . . Total Orders . | . . . Ally Attacks . | . . . Total Damage . | . . . Kills . | . . . Allies Corrupted . | . . . Allies Melted . | . . . Intel | -11 -10 -10 ------- Run | Yrd Mat Sub Active Infowar (turns) 378 | 15 363 . Seismic 378 | 15 363 . Robot Analysis Total . | . . . Derelict Logs Recovered 1 | . . 1 Drone Launches . | . . . Drone Recoveries . | . . . Exploration | -11 -10 -10 ------------- Run | Yrd Mat Sub Turns Passed 776 | 127 419 230 Spaces Moved 476 | 73 197 206 Core 230 | 11 13 206 Treads 221 | 62 159 . Legs . | . . . Wheels 25 | . 25 . Hover . | . . . Flight . | . . . Fastest Speed 50 | 50 90 100 Average Speed 126 | 143 147 100 Slowest Speed 160 | 160 160 100 Overloaded Moves . | . . . Propulsion Burnouts . | . . . Robots Hopped . | . . . Potential Cave-ins . | . . . Cave-ins Triggered . | . . . Exploration Rate (%) 11 | 5 18 12 Regions Visited 2 Branch Regions 1 Pre-discovered Areas . | . . . Known Exits Taken . | . . . Unknown Exits Taken 2 | 1 1 . Scrap Searched . | . . . Spaces Dug . | . . . Terrain Destroyed . | . . . Melee . | . . . Projectile . | . . . AOE . | . . . Terrain Rammed . | . . . Walls Destroyed . | . . . Machines Disabled . | . . . Actions | -11 -10 -10 --------- Run | Yrd Mat Sub Total 603 | 92 281 230 Wait 64 | . 41 23 Move 474 | 72 196 206 Hop . | . . . Pick Up 13 | 10 2 1 Fast Attach . | . . . Attach 11 | 7 4 . Detach . | . . . Swap . | . . . Drop 1 | . 1 . Fire 38 | 2 36 . Melee . | . . . Ram . | . . . Kick . | . . . Crush 2 | 1 1 . Escape Stasis . | . . . Rewire . | . . . Trap . | . . . Miscellaneous . | . . . Route ------- -11/Scrapyard -10/Materials -10/Subcaves (discovered 1 exit: [*Mat]) History --------- Turn | Location | Event 7 | -11/Scrapyard | Discovered new exit (range 15) 128 | -11/Scrapyard | Entered Materials 159 | -10/Materials | Discovered new exit (range 6) 319 | -10/Materials | Build established: Mutant 513 | -10/Materials | Core integrity fell below 50% 547 | -10/Materials | Entered Subcaves 548 | -10/Subcaves | Approached by a straggling Scientist 550 | -10/Subcaves | Learned Materials stockpile data 563 | -10/Subcaves | A swath of the cavern ceiling suddenly collapsed 565 | -10/Subcaves | Lost 8 parts (1p4n1u2w) 733 | -10/Subcaves | Ambushed by swarm of Subdwellers 736 | -10/Subcaves | Discovered new exit (range 7) 738 | -10/Subcaves | Core integrity fell below 20% 777 | -10/Subcaves | Destroyed by QE-HJM(R) with Subdweller Beam Cannon Last Messages --------------- Lgt. Armor Plating fries itself beyond repair. Acquired 51 matter. Acquired 3 matter. DM-MUB(c): "I think it's somewhere southeast of here" I4-RGB(h): "The Subs are coming!" EXIT=FOUND BF-T2H(g): "Sorry we're late! Had another grouchy Sub to deal with. Who's the new fellow?" HV Slug penetrates NB-DW2(R). NB-DW2(R) suffers critical hit (Destroy). NB-DW2(R) suffers critical hit (Burn). NB-DW2(R) destroyed. 0D-235(R) destroyed. DM-MUB(c): "I think it's somewhere southeast of here" T6-OL4(g) suffers critical hit (Destroy). T6-OL4(g) destroyed. QE-HJM(R): "ARGHSUB!" Map ----- +----------------------------------------------------+ | ##???# ##???????????????????????????????????? | | #### ##??????????????????????????????????? | | ## ### ??????????????????????????? | | ?????????????????????????????? | | ##???????????????????????????????????? | | ##???????????????????????????????????? | | ## #?????????????????????????????? | | ???????????????????????????? | | ## ???????????????????????????? | | ###?# ???????????????????????????? | | ##????#### #??????????????????????????? | | #?####????? # #??????????????????????????? | | ## #??????### ??????????????????????????? | | #?????##?# ????####??????????????????? | | #????# #?# ##### #;##?????????????????? | | ##??## ??# ; ; %##????????????????? | | ##??## #?## ;; [ !####?????????????? | | ####???# ### %%&* ##????????????? | | ##?##### ## =% !=%* #????????????? | | #?# # % %!## ??????? | | #?# ;;; R! &#? ""?????? | | # ### #; R #?? """## ?????? | | # ## # # R #???< "" #???????? | | ## ; #????""" ???????? | | ## ; R##??? ???????? | | ## # @ #???? ???????? | | #####;;;;; #???? ##### ??????? | | # ### ###?##### ##???? #????????????? | | #####?## #????# #????? ?????????????? | | ???????#########????# ##?????????????????????? | | ????????????????????#######??????????????????????? | | ?????????????????????????????????????????????????? | | ?????????????????????????????????????????????????? | | ?????????????????????????????????????????????????? | | ?????????????????????????????????????????????????? | | ?????????????????????????????????????????????????? | | ?????????????????????????????????????????????????? | | ?????????????????????????????????????????????????? | | ?????????????????????????????????????????????????? | | ?????????????????????????????????????????????????? | | ?????????????????????????????????????????????????? | | ?????????????????????????????????????????????????? | | ?????????????????????????????????????????????????? | | ?????????????????????????????????????????????????? | | ?????????????????????????????????????????????????? | | ?????????????????????????????????????????????????? | | ?????????????????????????????????????????????????? | | ?????????????????????????????????????????????????? | | ?????????????????????????????????????????????????? | | ?????????????????????????????????????????????????? | +----------------------------------------------------+ Best States ------------- Heat Dissipation 25 Energy Generation 10 Energy Capacity 250 Matter Stores 229 Matter Capacity 300 Sight Range 16 Terrain Scan Density 10 Evasion (%) 42 Recoil Reduction 2 Item Schematics ----------------- None Robot Schematics ------------------ None Fabricated ------------ Nothing Repaired ---------- Nothing Studied --------- None Alien Tech Used ----------------- None Achievements -------------- None Challenges ------------ None Game ------ Seed SapperImpulseImmobilizer Manual? 0 Play Time 00:10:20 Cumulative 4.6 hours Start 2026.03.11 @ 15:35:07 End 2026.03.11 @ 15:43:09 Sessions 1 Manual Loads 0 Difficulty Rogue Special Mode None Game No. 6 Rogue 6 Adventurer 0 Explorer 0 Win Type - Total 0 Types 0/0/0/0/0/0/0/0/0/0 Lore% 3 Gallery% 7 Achievement% 8 Wizard Run 0 Options --------- Layout 1 ASCII 0 Keyboard 0 Movement Arrows Keybinds 0 Fullscreen 1 Font 32/SmallcapsGlow Map View 50x35 Zoom Use 0% Tactical HUD 0 Map Filters NONE Filters NONE Steam 1 RUN: 969def5d-7b9e-499b-89b6-6d1d06ef4794